lending/lending_fUSD_20260119
["ID","MTS","AMOUNT","RATE_DAILY","PERIOD"]
[402704844,1768807352479,-500.0,0.00043077,120]
[402704845,1768807352554,-500.0,0.00043077,120]
[402704846,1768807352637,-501.48,0.00043077,120]
[402704847,1768807352706,-500.0,0.00043077,120]
[402704848,1768807352774,-500.0,0.00043077,120]
[402704849,1768807352839,-500.0,0.00043077,120]
[402704850,1768807352904,-500.0,0.00043077,120]
[402704851,1768807352969,-500.0,0.00043077,120]
[402704852,1768807353036,-553.89,0.00043077,120]
[402704853,1768807353103,-500.0,0.00043077,120]
[402704854,1768807353171,-500.0,0.00043077,120]
[402704855,1768807353241,-500.0,0.00043077,120]
[402704856,1768807353314,-500.0,0.00043077,120]
[402704857,1768807353381,-500.0,0.00043077,120]
[402704858,1768807353450,-332.45,0.00043077,120]
[402704859,1768807353521,-500.0,0.00043077,120]
[402704860,1768807353589,-500.0,0.00043077,120]
[402704861,1768807353661,-250.68,0.00043077,120]
[402704862,1768807353735,-500.0,0.00043077,120]
[402704863,1768807353803,-500.0,0.00043077,120]
[402704864,1768807353871,-500.0,0.00043077,120]
[402704865,1768807353941,-500.0,0.00043077,120]
[402704866,1768807354016,-500.0,0.00043077,120]
[402704867,1768807354087,-500.0,0.00043077,120]
[402704868,1768807354156,-642.36,0.00043077,120]
[402704869,1768807354226,-500.0,0.00043077,120]
[402704870,1768807354298,-500.0,0.00043077,120]
[402704871,1768807354368,-500.0,0.00043077,120]
[402704872,1768807354437,-500.0,0.00043077,120]
[402704873,1768807354509,-242.4,0.00043077,120]
[402704874,1768807354576,-421.11,0.00043077,120]
[402704875,1768807354645,-500.0,0.00043077,120]
[402704876,1768807354712,-500.0,0.00043077,120]
[402704877,1768807354778,-500.0,0.00043077,120]
[402704878,1768807354844,-581.79713796,0.00043077,120]
[402704879,1768807354925,-500.0,0.00043077,120]
[402704880,1768807354994,-239.26,0.00043077,120]
[402704881,1768807355062,-501.75239734,0.00043077,120]
[402704882,1768807355129,-500.0,0.00043077,120]
[402704883,1768807355197,-500.0,0.00043077,120]
[402704884,1768807355265,-500.0,0.00043077,120]
[402704885,1768807355333,-500.0,0.00043077,120]
[402704886,1768807355407,-634.20651698,0.00043077,120]
[402704887,1768807355477,-527.05,0.00043077,120]
[402704888,1768807355545,-570.85,0.00043077,120]
[402704889,1768807355621,-500.0,0.00043077,120]
[402704890,1768807355697,-500.0,0.00043077,120]
[402704891,1768807355774,-500.0,0.00043077,120]
[402704892,1768807355847,-500.0,0.00043077,120]
[402704893,1768807355916,-500.0,0.00043077,120]
[402704894,1768807355984,-500.0,0.00043077,120]
[402704895,1768807356054,-500.0,0.00043077,120]
[402704896,1768807356123,-500.0,0.00043077,120]
[402704897,1768807356196,-500.0,0.00043077,120]
[402704898,1768807356262,-500.0,0.00043077,120]
[402704899,1768807356328,-500.0,0.00043077,120]
[402704900,1768807356398,-500.0,0.00043077,120]
[402704901,1768807356467,-360.12,0.00043077,120]
[402704902,1768807356537,-362.66,0.00043077,120]
[402704903,1768807356610,-500.0,0.00043077,120]
[402704904,1768807356677,-500.0,0.00043077,120]
[402704905,1768807356744,-549.22,0.00043077,120]
[402704906,1768807356810,-500.0,0.00043077,120]
[402704907,1768807356875,-503.89755612,0.00043077,120]
[402704908,1768807356943,-500.0,0.00043077,120]
[402704909,1768807357011,-443.43194738,0.00043077,120]
[402704910,1768807357079,-571.56541893,0.00043077,120]
[402704911,1768807357147,-500.0,0.00043077,120]
[402704912,1768807357214,-500.0,0.00043077,120]
[402704913,1768807357281,-530.51,0.00043077,120]
[402704914,1768807357347,-500.0,0.00043077,120]
[402704915,1768807357418,-500.0,0.00043077,120]
[402704916,1768807357485,-500.0,0.00043077,120]
[402704917,1768807357550,-500.0,0.00043077,120]
[402704918,1768807357613,-606.85,0.00043077,120]
[402704919,1768807357675,-155.43148271,0.00043077,120]
[402704920,1768807357735,-500.0,0.00043077,120]
[402704921,1768807357791,-500.0,0.00043077,120]
[402704922,1768807357846,-500.0,0.00043077,120]
[402704923,1768807357902,-500.0,0.00043077,120]
[402704924,1768807357965,-158.13,0.00043077,120]
[402704925,1768807358026,-500.0,0.00043077,120]
[402704926,1768807358088,-388.98795038,0.00043077,120]
[402704927,1768807358155,-500.0,0.00043077,120]
[402704928,1768807358219,-500.0,0.00043077,120]
[402704929,1768807358281,-563.63,0.00043077,120]
[402704930,1768807358344,-502.94564658,0.00043077,120]
[402704931,1768807358410,-500.0,0.00043077,120]
[402704932,1768807358477,-500.0,0.00043077,120]
[402704933,1768807358543,-500.0,0.00043077,120]
[402704934,1768807358610,-285.6,0.00043077,120]
[402704935,1768807358676,-250.99,0.00043077,120]
[402704936,1768807358997,-500.0,0.00043077,120]
[402704937,1768807359069,-500.0,0.00043077,120]
[402704938,1768807359137,-500.0,0.00043077,120]
[402704939,1768807359213,-540.13,0.00043077,120]
[402704940,1768807359287,-500.0,0.00043077,120]
[402704941,1768807359358,-500.0,0.00043077,120]
[402704942,1768807359430,-500.0,0.00043077,120]
[402704943,1768807359500,-220.62,0.00043077,120]
[402704944,1768807359576,-500.0,0.00043077,120]
[402704945,1768807359647,-500.0,0.00043077,120]
[402704946,1768807359716,-500.0,0.00043077,120]
[402704947,1768807359782,-150.76,0.00043077,120]
[402704948,1768807359847,-504.5049471,0.00043077,120]
[402704949,1768807359915,-500.0,0.00043077,120]
[402704950,1768807359986,-500.0,0.00043077,120]
[402704951,1768807360054,-581.31,0.00043077,120]
[402704952,1768807360121,-500.0,0.00043077,120]
[402704953,1768807360189,-500.0,0.00043077,120]
[402704954,1768807360257,-278.74,0.00043077,120]
[402704955,1768807360326,-500.0,0.00043077,120]
[402704956,1768807360397,-500.0,0.00043077,120]
[402704957,1768807360466,-524.28654539,0.00043077,120]
[402704958,1768807360534,-500.0,0.00043077,120]
[402704959,1768807360607,-270.76,0.00043077,120]
[402704960,1768807360676,-500.0,0.00043077,120]
[402704961,1768807360745,-560.46,0.00043077,120]
[402704962,1768807360811,-500.0,0.00043077,120]
[402704963,1768807360877,-500.0,0.00043077,120]
[402704964,1768807360944,-500.0,0.00043077,120]
[402704965,1768807361013,-500.0,0.00043077,120]
[402704966,1768807361082,-211.46,0.00043077,120]
[402704967,1768807361149,-500.0,0.00043077,120]
[402704968,1768807361216,-500.0,0.00043077,120]
[402704969,1768807361281,-500.0,0.00043077,120]
[402704970,1768807361344,-500.0,0.00043077,120]
[402704971,1768807361412,-157.52,0.00043077,120]
[402704972,1768807361478,-500.0,0.00043077,120]
[402704973,1768807361543,-503.292006,0.00043077,120]
[402704974,1768807361612,-502.79446933,0.00043077,120]
[402704975,1768807361676,-500.0,0.00043077,120]
[402704976,1768807361742,-502.04544442,0.00043077,120]
[402704977,1768807361810,-500.0,0.00043077,120]
[402704978,1768807361877,-509.87603623,0.00043077,120]
[402704979,1768807361950,-500.0,0.00043077,120]
[402704980,1768807362020,-500.0,0.00043077,120]
[402704981,1768807362090,-500.0,0.00043077,120]
[402704982,1768807362162,-500.0,0.00043077,120]
[402704983,1768807362231,-500.0,0.00043077,120]
[402704984,1768807362298,-165.48,0.00043077,120]
[402704985,1768807362365,-500.0,0.00043077,120]
[402704986,1768807362432,-502.76750299,0.00043077,120]
[402704987,1768807362501,-500.0,0.00043077,120]
[402704988,1768807362574,-500.0,0.00043077,120]
[402704989,1768807362641,-500.0,0.00043077,120]
[402704990,1768807362709,-517.2515905,0.00043077,120]
[402704991,1768807362774,-500.0,0.00043077,120]
[402704992,1768807362837,-500.0,0.00043077,120]
[402704993,1768807362901,-500.0,0.00043077,120]
[402704994,1768807362965,-404.32,0.00043077,120]
[402704995,1768807363031,-500.0,0.00043077,120]
[402704996,1768807363096,-500.0,0.00043077,120]
[402704997,1768807363169,-500.0,0.00043077,120]
[402704998,1768807363236,-500.0,0.00043077,120]
[402704999,1768807363304,-202.54,0.00043077,120]
[402705000,1768807363372,-500.0,0.00043077,120]
[402705001,1768807363437,-508.03469652,0.00043077,120]
[402705002,1768807363502,-500.0,0.00043077,120]
[402705003,1768807363569,-500.0,0.00043077,120]
[402705004,1768807363635,-545.96,0.00043077,120]
[402705005,1768807363705,-500.0,0.00043077,120]
[402705006,1768807363771,-500.0,0.00043077,120]
[402705007,1768807363844,-498.0,0.00043077,120]
[402705008,1768807363911,-500.0,0.00043077,120]
[402705009,1768807363980,-500.0,0.00043077,120]
[402705010,1768807364049,-500.0,0.00043077,120]
[402705011,1768807364117,-500.0,0.00043077,120]
[402705012,1768807364190,-500.0,0.00043077,120]
[402705013,1768807364270,-188.36,0.00043077,120]
[402705014,1768807364348,-500.0,0.00043077,120]
[402705015,1768807364427,-275.58054747,0.00043077,120]
[402705016,1768807364493,-500.0,0.00043077,120]
[402705017,1768807364556,-502.29931432,0.00043077,120]
[402705018,1768807364621,-500.0,0.00043077,120]
[402705019,1768807364689,-500.0,0.00043077,120]
[402705020,1768807364755,-531.29,0.00043077,120]
[402705021,1768807364820,-500.0,0.00043077,120]
[402705022,1768807364889,-500.0,0.00043077,120]
[402705023,1768807364958,-500.0,0.00043077,120]
[402705024,1768807365025,-538.55,0.00043077,120]
[402705025,1768807365092,-500.0,0.00043077,120]
[402705026,1768807365158,-555.62,0.00043077,120]
[402705027,1768807365226,-500.0,0.00043077,120]
[402705028,1768807365299,-500.0,0.00043077,120]
[402705029,1768807365370,-500.0,0.00043077,120]
[402705030,1768807365437,-163.37,0.00043077,120]
[402705031,1768807365853,-500.0,0.00043077,120]
[402705032,1768807365920,-500.0,0.00043077,120]
[402705033,1768807365987,-500.0,0.00043077,120]
[402705034,1768807366053,-436.09619822,0.00043077,30]
[402705035,1768807366119,-500.0,0.00043077,120]
[402705036,1768807366188,-504.0,0.00043077,120]
[402705037,1768807366255,-635.51,0.00043077,120]
[402705038,1768807366322,-500.0,0.00043077,120]
[402705039,1768807366390,-204.78,0.00043077,120]
[402705040,1768807366456,-500.0,0.00043077,120]
[402705041,1768807366521,-500.0,0.00043077,120]
[402705042,1768807366587,-500.0,0.00043077,120]
[402705043,1768807366653,-500.0,0.00043077,120]
[402705044,1768807366720,-500.0,0.00043077,120]
[402705045,1768807366785,-500.0,0.00043077,120]
[402705046,1768807366851,-208.51,0.00043077,120]
[402705047,1768807366916,-500.0,0.00043077,120]
[402705048,1768807366984,-500.0,0.00043077,120]
[402705049,1768807367051,-500.0,0.00043077,120]
[402705050,1768807367117,-160.0,0.00043077,120]
[402705051,1768807367186,-500.0,0.00043077,120]
[402705052,1768807367256,-500.0,0.00043077,120]
[402705053,1768807367324,-500.0,0.00043077,120]
[402705054,1768807367395,-500.0,0.00043077,120]
[402705055,1768807367465,-164.9,0.00043077,120]
[402705056,1768807367536,-500.0,0.00043077,120]
[402705057,1768807367604,-500.0,0.00043077,120]
[402705058,1768807367675,-500.0,0.00043077,120]
[402705059,1768807367743,-500.0,0.00043077,120]
[402705060,1768807367812,-436.89,0.00043077,120]
[402705061,1768807367877,-500.0,0.00043077,120]
[402705062,1768807367944,-181.14,0.00043077,120]
[402705063,1768807368013,-500.0,0.00043077,120]
[402705064,1768807368081,-500.0,0.00043077,120]
[402705065,1768807368151,-543.57,0.00043077,120]
[402705066,1768807368220,-500.0,0.00043077,120]
[402705067,1768807368305,-500.0,0.00043077,120]
[402705068,1768807368390,-195.06,0.00043077,120]
[402705069,1768807368460,-500.0,0.00043077,30]
[402705070,1768807368531,-500.0,0.00043077,120]
[402705071,1768807368610,-500.0,0.00043077,120]
[402705072,1768807368679,-464.75,0.00043077,120]
[402705073,1768807368744,-500.0,0.00043077,45]
[402705074,1768807368810,-428.19,0.00043077,45]
[402705075,1768807368874,-602.5,0.00043077,120]
[402705076,1768807368941,-500.0,0.00043077,120]
[402705077,1768807369008,-500.0,0.00043077,120]
[402705078,1768807369075,-500.0,0.00043077,120]
[402705079,1768807369144,-500.0,0.00043077,120]
[402705080,1768807369214,-500.0,0.00043077,120]
[402705081,1768807369283,-500.0,0.00043077,120]
[402705082,1768807369351,-560.82,0.00043077,120]
[402705083,1768807369423,-500.0,0.00043077,120]
[402705084,1768807369493,-500.0,0.00043077,120]
[402705085,1768807369568,-500.0,0.00043077,120]
[402705086,1768807369646,-500.0,0.00043077,120]
[402705087,1768807369718,-500.0,0.00043077,120]
[402705088,1768807369782,-219.88,0.00043077,120]
[402705089,1768807369847,-500.0,0.00043077,120]
[402705090,1768807369915,-500.0,0.00043077,120]
[402705091,1768807369983,-234.5,0.00043077,120]
[402705092,1768807370050,-500.0,0.00043077,120]
[402705093,1768807370117,-500.0,0.00043077,120]
[402705094,1768807370184,-500.0,0.00043077,120]
[402705095,1768807370250,-512.52,0.00043077,120]
[402705096,1768807370314,-500.0,0.00043077,120]
[402705097,1768807370377,-500.0,0.00043077,120]
[402705098,1768807370441,-500.0,0.00043077,120]
[402705099,1768807370505,-500.0,0.00043077,120]
[402705100,1768807370569,-500.0,0.00043077,120]
[402705101,1768807370634,-637.89,0.00043077,120]
[402705102,1768807370697,-500.0,0.00043077,120]
[402705103,1768807370760,-452.82,0.00043077,120]
[402705104,1768807370823,-536.23,0.00043077,120]
[402705105,1768807370884,-500.0,0.00043077,120]
[402705106,1768807370948,-500.0,0.00043077,120]
[402705107,1768807371014,-500.0,0.00043077,120]
[402705108,1768807371081,-500.0,0.00043077,120]
[402705109,1768807371147,-487.64971878,0.00043077,120]
[402705110,1768807371213,-500.0,0.00043077,120]
[402705111,1768807371284,-500.0,0.00043077,120]
[402705112,1768807371355,-349.02,0.00043077,120]
[402705113,1768807371421,-503.75,0.00043077,120]
[402705114,1768807371488,-500.0,0.00043077,60]
[402705115,1768807371551,-435.53343969,0.00043077,120]
[402705116,1768807371614,-500.0,0.00043077,120]
[402705117,1768807371676,-210.83,0.00043077,120]
[402705118,1768807371738,-500.0,0.00043077,120]
[402705119,1768807371802,-613.11684163,0.00043077,120]
[402705120,1768807371864,-507.98001465,0.00043077,120]
[402705121,1768807371926,-500.0,0.00043077,120]
[402705122,1768807371992,-500.0,0.00043077,120]
[402705123,1768807372062,-500.0,0.00043077,120]
[402705124,1768807372143,-204.66,0.00043077,120]
[402705125,1768807372446,-500.0,0.00043077,60]
[402705126,1768807372529,-500.0,0.00043077,120]
[402705127,1768807372598,-500.0,0.00043077,120]
[402705128,1768807372665,-455.98,0.00043077,120]
[402705129,1768807372732,-500.0,0.00043077,120]
[402705130,1768807372798,-500.0,0.00043077,120]
[402705131,1768807372875,-500.0,0.00043077,120]
[402705132,1768807372952,-261.07,0.00043077,120]
[402705133,1768807373024,-500.0,0.00043077,120]
[402705134,1768807373093,-500.0,0.00043077,120]
[402705135,1768807373166,-500.0,0.00043077,120]
[402705136,1768807373237,-535.01,0.00043077,120]
[402705137,1768807373307,-512.77,0.00043077,120]
[402705138,1768807373375,-500.0,0.00043077,120]
[402705139,1768807373443,-500.0,0.00043077,120]
[402705140,1768807373509,-500.0,0.00043077,120]
[402705141,1768807373584,-461.52,0.00043077,120]
[402705142,1768807373653,-500.0,0.00043077,120]
[402705143,1768807373720,-448.06853592,0.00043077,120]
[402705144,1768807373785,-500.0,0.00043077,120]
[402705145,1768807373852,-500.0,0.00043077,120]
[402705146,1768807373918,-500.0,0.00043077,120]
[402705147,1768807373986,-246.69,0.00043077,120]
[402705148,1768807374058,-500.0,0.00043077,120]
[402705149,1768807374126,-500.0,0.00043077,120]
[402705150,1768807374197,-522.92,0.00043077,120]
[402705151,1768807374268,-572.42,0.00043077,120]
[402705152,1768807374339,-500.0,0.00043077,120]
[402705153,1768807374412,-501.46,0.00043077,120]
[402705154,1768807374482,-438.99572604,0.00043077,120]
[402705155,1768807374548,-500.0,0.00043077,120]
[402705156,1768807374619,-500.0,0.00043077,120]
[402705157,1768807374690,-500.0,0.00043077,120]
[402705158,1768807374761,-500.0,0.00043077,120]
[402705159,1768807374828,-179.83657437,0.00043077,120]
[402705160,1768807374899,-500.0,0.00043077,120]
[402705161,1768807374969,-700.0,0.00043077,120]
[402705162,1768807375046,-500.0,0.00043077,120]
[402705163,1768807375117,-538.06,0.00043077,120]
[402705164,1768807375188,-500.0,0.00043077,120]
[402705165,1768807375262,-500.0,0.00043077,120]
[402705166,1768807375335,-500.0,0.00043077,120]
[402705167,1768807375406,-500.0,0.00043077,120]
[402705168,1768807375477,-500.0,0.00043077,120]
[402705169,1768807375553,-500.0,0.00043077,120]
[402705170,1768807375624,-500.0,0.00043077,120]
[402705171,1768807375697,-500.0,0.00043077,120]
[402705172,1768807375767,-602.4,0.00043077,120]
[402705173,1768807375836,-500.0,0.00043077,120]
[402705174,1768807375907,-617.78199783,0.00043077,120]
[402705175,1768807375989,-500.0,0.00043077,120]
[402705176,1768807376059,-500.0,0.00043077,120]
[402705177,1768807376128,-500.0,0.00043077,120]
[402705178,1768807376197,-500.0,0.00043077,120]
[402705179,1768807376269,-500.0,0.00043077,120]
[402705180,1768807376338,-504.95064944,0.00043077,120]
[402705181,1768807376409,-640.34,0.00043077,120]
[402705182,1768807376480,-438.04539941,0.00043077,120]
[402705183,1768807376551,-500.0,0.00043077,120]
[402705184,1768807376620,-500.0,0.00043077,120]
[402705185,1768807376688,-500.0,0.00043077,120]
[402705186,1768807376755,-511.94075307,0.00043077,120]
[402705187,1768807376825,-500.0,0.00043077,120]
[402705188,1768807376894,-500.0,0.00043077,120]
[402705189,1768807376966,-500.0,0.00043077,120]
[402705190,1768807377040,-441.00547302,0.00043077,120]
[402705191,1768807377119,-500.0,0.00043077,120]
[402705192,1768807377200,-500.0,0.00043077,120]
[402705193,1768807377273,-500.0,0.00043077,120]
[402705194,1768807377345,-500.0,0.00043077,120]
[402705195,1768807377425,-199.51343681,0.00043077,120]
[402705196,1768807377497,-213.51,0.00043077,120]
[402705197,1768807377573,-500.0,0.00043077,120]
[402705198,1768807377649,-500.0,0.00043077,60]
[402705199,1768807377723,-644.38,0.00043077,120]
[402705200,1768807377790,-500.0,0.00043077,120]
[402705201,1768807377854,-563.86,0.00043077,120]
[402705202,1768807377920,-500.0,0.00043077,120]
[402705203,1768807377986,-298.98,0.00043077,120]
[402705204,1768807378053,-500.0,0.00043077,120]
[402705205,1768807378116,-177.77,0.00043077,120]
[402705206,1768807378190,-500.0,0.00043077,120]
[402705207,1768807378262,-500.0,0.00043077,120]
[402705208,1768807378329,-250.59,0.00043077,120]
[402705209,1768807378399,-500.0,0.00043077,120]
[402705210,1768807378467,-500.0,0.00043077,120]
[402705211,1768807378536,-500.0,0.00043077,120]
[402705212,1768807378607,-285.26,0.00043077,120]
[402705213,1768807378674,-639.45,0.00043077,120]
[402705214,1768807378741,-500.0,0.00043077,120]
[402705215,1768807378813,-500.0,0.00043077,120]
[402705216,1768807378882,-500.0,0.00043077,120]
[402705217,1768807378951,-549.02,0.00043077,120]
[402705218,1768807379025,-556.06,0.00043077,120]
[402705219,1768807379403,-500.0,0.00043077,120]
[402705220,1768807379478,-641.34,0.00043077,120]
[402705221,1768807379548,-500.0,0.00043077,120]
[402705222,1768807379619,-500.0,0.00043077,120]
[402705223,1768807379691,-268.38722329,0.00043077,120]
[402705224,1768807379758,-500.0,0.00043077,120]
[402705225,1768807379827,-195.76,0.00043077,120]
[402705226,1768807379895,-500.0,0.00043077,120]
[402705227,1768807379964,-631.78,0.00043077,120]
[402705228,1768807380034,-502.31607927,0.00043077,120]
[402705229,1768807380104,-500.0,0.00043077,120]
[402705230,1768807380174,-574.41,0.00043077,120]
[402705231,1768807380246,-484.92022901,0.00043077,120]
[402705232,1768807380322,-531.55074428,0.00043077,120]
[402705233,1768807380399,-500.0,0.00043077,120]
[402705234,1768807380471,-391.07,0.00043077,120]
[402705235,1768807380548,-500.0,0.00043077,120]
[402705236,1768807380624,-213.51807869,0.00043077,120]
[402705237,1768807380698,-502.84611189,0.00043077,120]
[402705238,1768807380772,-500.0,0.00043077,120]
[402705239,1768807380842,-504.87121468,0.00043077,120]
[402705240,1768807380911,-518.007427,0.00043077,120]
[402705241,1768807380981,-500.0,0.00043077,120]
[402705242,1768807381052,-500.0,0.00043077,120]
[402705243,1768807381125,-500.0,0.00043077,120]
[402705244,1768807381198,-500.0,0.00043077,120]
[402705245,1768807381271,-500.0,0.00043077,120]
[402705246,1768807381343,-500.0,0.00043077,120]
[402705247,1768807381415,-500.0,0.00043077,120]
[402705248,1768807381489,-500.0,0.00043077,120]
[402705249,1768807381558,-500.0,0.00043077,120]
[402705250,1768807381632,-500.0,0.00043077,120]
[402705251,1768807381701,-500.0,0.00043077,120]
[402705252,1768807381769,-500.0,0.00043077,120]
[402705253,1768807381839,-500.0,0.00043077,120]
[402705254,1768807381908,-500.0,0.00043077,120]
[402705255,1768807381978,-500.0,0.00043077,120]
[402705256,1768807382048,-500.0,0.00043077,120]
[402705257,1768807382117,-500.0,0.00043077,120]
[402705258,1768807382186,-500.0,0.00043077,120]
[402705259,1768807382258,-500.0,0.00043077,120]
[402705260,1768807382327,-500.0,0.00043077,120]
[402705261,1768807382398,-500.0,0.00043077,120]
[402705262,1768807382469,-500.0,0.00043077,120]
[402705263,1768807382537,-500.0,0.00043077,120]
[402705264,1768807382604,-500.0,0.00043077,120]
[402705265,1768807382677,-500.0,0.00043077,120]
[402705266,1768807382744,-182.95018145,0.00043077,120]
[402705267,1768807382813,-367.43029353,0.00043077,120]
[402705268,1768807382880,-229.5119861,0.00043077,120]
[402705269,1768807382947,-500.0,0.00043077,120]
[402705270,1768807383014,-219.55827202,0.00043077,120]
[402705271,1768807383078,-277.73971308,0.00043077,120]
[402705272,1768807383147,-321.71907001,0.00043077,120]
[402705273,1768807383217,-232.67014581,0.00043077,120]
[402705274,1768807383287,-189.77933625,0.00043077,120]
[402705275,1768807383363,-352.7737711,0.00043077,120]
[402705276,1768807383437,-212.94113198,0.00043077,120]
[402705277,1768807383509,-263.59318457,0.00043077,120]
[402705278,1768807383579,-204.36080551,0.00043077,120]
[402705279,1768807383649,-261.01919927,0.00043077,120]
[402705280,1768807383721,-623.75131856,0.00043077,120]
[402705281,1768807383801,-413.54918559,0.00043077,120]
[402705282,1768807383872,-182.14524678,0.00043077,120]
[402705283,1768807383942,-216.03640021,0.00043077,120]
[402705284,1768807384013,-547.92123078,0.00043077,120]
[402705285,1768807384089,-220.45283646,0.00043077,120]
[402705286,1768807384161,-220.13601864,0.00043077,120]
[402705287,1768807384229,-236.37837455,0.00043077,120]
[402705288,1768807384299,-289.40802952,0.00043077,120]
[402705289,1768807384377,-383.77025882,0.00043077,120]
[402705290,1768807384451,-338.08778558,0.00043077,120]
[402705291,1768807384523,-168.60185857,0.00043077,120]
[402705292,1768807384595,-440.98680371,0.00043077,120]
[402705293,1768807384667,-178.02634334,0.00043077,120]
[402705294,1768807384740,-500.0,0.00043077,120]
[402705295,1768807384811,-480.15532263,0.00043077,120]
[402705296,1768807384883,-169.05986997,0.00043077,120]
[402705297,1768807384955,-158.57899084,0.00043077,120]
[402705298,1768807385028,-500.0,0.00043077,120]
[402705299,1768807385100,-500.0,0.00043077,120]
[402705300,1768807385171,-479.747641,0.00043077,120]
[402705301,1768807385241,-280.37011536,0.00043077,120]
[402705302,1768807385313,-275.1534474,0.00043077,120]
[402705303,1768807385384,-181.63145539,0.00043077,120]
[402705304,1768807385458,-295.74583823,0.00043077,120]
[402705305,1768807385532,-211.657708,0.00043077,120]
[402705306,1768807385604,-326.11620316,0.00043077,120]
[402705307,1768807385678,-356.7435305,0.00043077,120]
[402705308,1768807385750,-160.9982934,0.00043077,120]
[402705309,1768807385819,-157.01519818,0.00043077,120]
[402705310,1768807385890,-198.27246188,0.00043077,120]
[402705311,1768807385959,-194.7586395,0.00043077,120]
[402705312,1768807386032,-500.0,0.00043077,120]
[402705313,1768807386104,-597.66442362,0.00043077,120]
[402705314,1768807386462,-266.02086684,0.00043077,120]
[402705315,1768807386535,-500.0,0.00043077,120]
[402705316,1768807386609,-372.06750684,0.00043077,120]
[402705317,1768807386682,-508.31379129,0.00043077,120]
[402705318,1768807386755,-151.53466366,0.00043077,120]
[402705319,1768807386823,-166.31217788,0.00043077,120]
[402705320,1768807386902,-175.47125476,0.00043077,120]
[402705321,1768807386985,-500.0,0.00043077,120]
[402705322,1768807387061,-251.10059,0.00043077,120]
[402705323,1768807387131,-158.55756664,0.00043077,120]
[402705324,1768807387203,-179.5894936,0.00043077,120]
[402705325,1768807387274,-223.8273375,0.00043077,120]
[402705326,1768807387342,-297.77249205,0.00043077,120]
[402705327,1768807387412,-339.86288981,0.00043077,120]
[402705328,1768807387484,-396.32989032,0.00043077,120]
[402705329,1768807387555,-191.5523738,0.00043077,120]
[402705330,1768807387624,-566.63228128,0.00043077,120]
[402705331,1768807387694,-322.55892437,0.00043077,120]
[402705332,1768807387765,-185.38313384,0.00043077,120]
[402705333,1768807387835,-225.03913946,0.00043077,120]
[402705334,1768807387907,-571.09771454,0.00043077,120]
[402705335,1768807387979,-189.68080972,0.00043077,120]
[402705336,1768807388052,-230.76541418,0.00043077,120]
[402705337,1768807388125,-181.29125763,0.00043077,120]
[402705338,1768807388202,-234.33122164,0.00043077,120]
[402705339,1768807388277,-199.27535464,0.00043077,60]
[402705340,1768807388349,-196.91406249,0.00043077,120]
[402705341,1768807388423,-258.97798742,0.00043077,120]
[402705342,1768807388495,-226.0,0.00043077,120]
[402705343,1768807388566,-152.83143822,0.00043077,30]